Cogmind - Beta 13 @@@ ROGUE MODE // 2024.04.19 @ 20:35:26 Player: darki Result: Destroyed self with Sigix Terminator Performance ------------- Evolutions (9) 4500 Regions Visited (30) 6000 Robots Destroyed (150) 750 Value Destroyed (5556) 5556 Prototype IDs (44) 880 Alien Tech Used (6) 1200 Bonus (4209) 4209 TOTAL SCORE: 23095 Bonus ------- High Alert Combat Kills 232 Follower Combat Kills 497 Met Zhirov 300 Met Warlord at Base 500 MAIN.C Attacked Warlord 500 Warlord Defense Kills 180 Met Warlord at Research 2000 Cogmind --------- Core Integrity 0/1600 Matter 183/300 Energy 85/100 System Corruption 5% Temperature Cool (0) Movement Core (50) Location -1/Access Parts ------- > --- POWER (2) -------- (None) > --- PROPULSION (7) --- (None) > --- UTILITY (14) ----- Experimental Core Analyzer Improved Armor Integrity Analyzer Hacking Suite Hacking Suite Improved System Shield Advanced System Shield > --- WEAPON (2) ------- (None) > --- INVENTORY (5) ---- Micro Antimatter Reactor Microwarp Drive Peak State ------------ > --- POWER ------------ Light Quantum Reactor > --- PROPULSION ------- Xenon Bombardment Thruster Nuclear Pulse Thruster Impulse Thruster Diametric Drive Q-thruster Improved Q-thruster > --- UTILITY ---------- Advanced Power Amplifier Advanced Sensor Array Advanced Signal Interpreter Experimental Core Analyzer Cloaking Device Cloaking Device Light Regenerative Plating Light Regenerative Plating Hacking Suite Hacking Suite Improved Hacking Suite Makeshift System Shield Improved System Shield Advanced System Shield > --- WEAPON ----------- Sigix Broadsword > --- INVENTORY -------- Experimental Force Field Subatomic Replicator Hypervelocity EM Gauss Rifle Sigix Terminator [Rating: 160] Favorites ----------- Power Nuclear Core Engine Light Angular Momentum Engine Power Core Nuclear Core Reactor Antimatter Reactor Propulsion Armored Treads Treads Armored Treads Leg Aluminum Leg Hover Unit Makeshift Hover Unit Flight Unit Improved VTOL Module Utility Hacking Suite Device Heat Sink Storage High-capacity Storage Unit Processor Target Analyzer Hackware Hacking Suite Protection Light Armor Plating Artifact Microwarp Drive Weapon Shotgun Energy Gun Beam Rifle Energy Cannon Core Cannon Ballistic Gun Shotgun Ballistic Cannon Hardcell Cannon Launcher Missile Launcher Special Weapon Improved Plasma Cutter Slashing Weapon Scythe Piercing Weapon Lance Build | -11 -10 -10 -9 -9 -9 -8 -8 -7 -7 -6 -6 -6 -6 -5 -5 -5 -5 -5 -4 -4 -4 -4 -4 -3 -3 -3 -2 -2 -2 -1 ------- Run | Yrd Mat Min Mat Min Exi Min Mat Fac Sto Fac Low Low Zio Pro Fac Upp Upp Zhi Pro Fac Upp Upp War Pro Res Qua Res Tes Sec Acc Slots Evolved 18 | . . . 2 . . . 2 2 . 2 . . . . 2 . . . . 2 . . . . 2 . 2 . . 2 Power 1 | . . . . . . . . . . . . . . . . . . . . . . . . . . . . . . 1 Propulsion 5 | . . . . . . . 1 . . . . . . . 1 . . . . . . . . . . . 2 . . 1 Utility 12 | . . . 2 . . . 1 2 . 2 . . . . 1 . . . . 2 . . . . 2 . . . . . Weapon . | . . . . . . . . . . . . . . . . . . . . . . . . . . . . . . . Parts Attached 272 | . 5 4 24 9 1 6 29 14 6 2 . 1 3 1 8 3 . 5 3 17 . . 27 3 35 13 22 12 2 17 Power 28 | . . 1 5 . . 1 2 3 . . . . . . . . . 1 . 2 . . 2 . 2 1 5 . . 3 Engine 9 | . . 1 3 . . 1 1 1 . . . . . . . . . . . 1 . . 1 . . . . . . . Core 6 | . . . 2 . . . 1 2 . . . . . . . . . . . 1 . . . . . . . . . . Reactor 13 | . . . . . . . . . . . . . . . . . . 1 . . . . 1 . 2 1 5 . . 3 Propulsion 54 | . 2 1 3 1 . 1 9 2 3 . . . . . 1 . . . . 4 . . 8 . 9 1 5 3 . 1 Treads 21 | . 2 1 3 1 . 1 8 . . . . . . . . . . . . . . . 5 . . . . . . . Leg . | . . . . . . . . . . . . . . . . . . . . . . . . . . . . . . . Wheel . | . . . . . . . . . . . . . . . . . . . . . . . . . . . . . . . Hover 4 | . . . . . . . . . 1 . . . . . . . . . . . . . 3 . . . . . . . Flight 29 | . . . . . . . 1 2 2 . . . . . 1 . . . . 4 . . . . 9 1 5 3 . 1 Utility 126 | . 3 1 9 4 1 3 9 8 2 2 . . 1 . 6 1 . 3 3 9 . . 13 1 17 3 10 6 1 10 Device 38 | . . 1 2 1 . 1 . 2 . . . . . . . . . . . 6 . . 1 . 9 2 4 1 . 8 Storage 7 | . 1 . . . 1 . . . . . . . . . . . . 2 . . . . 3 . . . . . . . Processor 22 | . . . 2 . . . 2 3 . 1 . . . . 3 . . . 2 1 . . 2 . 2 . 3 . . 1 Hackware 19 | . . . . . . . . 3 2 . . . 1 . 1 . . . 1 1 . . 3 . 3 1 2 1 . . Protection 38 | . 2 . 5 3 . 2 7 . . 1 . . . . 2 1 . 1 . 1 . . 4 1 3 . 1 4 . . Artifact 2 | . . . . . . . . . . . . . . . . . . . . . . . . . . . . . 1 1 Weapon 64 | . . 1 7 4 . 1 9 1 1 . . 1 2 1 1 2 . 1 . 2 . . 4 2 7 8 2 3 1 3 Energy Gun 12 | . . . 3 . . . . . . . . . . . . . . . . . . . 4 2 3 . . . . . Energy Cannon 1 | . . . . . . . . . . . . . . . . . . . . . . . . . . 1 . . . . Ballistic Gun 15 | . . 1 4 2 . 1 6 . . . . . . . . . . . . . . . . . 1 . . . . . Ballistic Cannon 1 | . . . . . . . . . . . . . . . . . . . . . . . . . 1 . . . . . Launcher 7 | . . . . 2 . . 1 . 1 . . 1 . . . . . . . . . . . . . 1 . . . 1 Special Weapon 4 | . . . . . . . . . . . . . . . . . . . . 1 . . . . . 3 . . . . Impact Weapon . | . . . . . . . . . . . . . . . . . . . . . . . . . . . . . . . Slashing Weapon 23 | . . . . . . . 2 1 . . . . 2 1 1 2 . 1 . 1 . . . . 2 3 2 3 1 1 Piercing Weapon 1 | . . . . . . . . . . . . . . . . . . . . . . . . . . . . . . 1 Special Melee Weapon . | . . . . . . . . . . . . . . . . . . . . . . . . . . . . . . . Unidentified Prototypes 29 | . . . 1 1 . . 2 . 2 . . . . . . . . 5 . . . . 4 . 3 4 3 2 1 1 Corrupted Parts 1 | . . . . . . . . . . . . . . . . . . . . . . . . . 1 . . . . . System Corruption 5 | . . . . . . . . . . . . . . . . . . . . . . . . . 5 . . . . . Parts Lost 84 | . 1 . 4 3 . 3 8 . . . . . . . 7 5 . . 4 4 2 3 1 3 15 . 4 4 . 13 Power 5 | . . . . . . . 1 . . . . . . . . . . . . 1 . . . . 1 . 1 . . 1 Propulsion 20 | . . . . 1 . 1 2 . . . . . . . 1 2 . . 1 1 1 . . . 2 . 1 2 . 5 Utility 48 | . 1 . 2 2 . 1 5 . . . . . . . 6 3 . . 3 2 1 2 1 1 9 . 2 2 . 5 Weapon 11 | . . . 2 . . 1 . . . . . . . . . . . . . . . 1 . 2 3 . . . . 2 Highest Loss Streak 13 | . 1 . 3 3 . 3 3 . . . . . . . 6 4 . . 4 3 2 4 1 2 13 . 1 3 . 6 To Critical Strikes . | . . . . . . . . . . . . . . . . . . . . . . . . . . . . . . . Average Slot Usage (%) 86 | . 98 100 98 99 100 100 98 74 89 93 93 93 87 90 86 52 29 33 40 60 39 23 52 93 69 87 88 85 69 56 Engine 4 | . 14 14 9 . . 8 7 . . . . . . . . . . . . 1 . . 2 . . . . . . . Core 2 | . . . 1 11 11 2 1 1 7 6 6 6 6 6 5 2 . . . 2 . . . . . . . . . . Treads 14 | . 26 28 22 21 22 22 26 . . . . . . . . . . . . . . . 3 15 5 . . . . . Flight 5 | . . . . . . . . 14 20 20 20 20 20 20 16 9 5 5 4 11 4 . . . 7 19 21 21 17 11 Device 9 | . . 12 12 11 11 11 9 14 15 13 13 13 13 13 11 9 5 5 3 12 4 . . 5 6 22 19 14 8 7 Storage 6 | . 14 14 11 11 11 11 9 . . . . . . . . . . . . . . . 3 10 4 . . . . . Processor 9 | . . . 7 11 11 11 9 17 15 20 20 20 18 13 15 14 11 11 19 16 21 16 8 10 9 14 11 8 8 9 Hackware 8 | . . . . . . . . 17 23 20 20 20 21 26 23 5 5 5 6 5 5 5 18 21 18 24 26 26 26 19 Protection 8 | . 12 1 11 10 11 11 16 . . 6 6 6 6 6 4 3 . 2 3 2 . . 1 14 6 . . 7 . . Energy Gun 4 | . 14 4 15 . . . . . . . . . . . . . . . . . . . 5 10 3 . . . . . Ballistic Gun 8 | . 14 24 6 21 22 22 17 . . . . . . . . . . . . . . . . . . . . . . . Slashing Weapon 1 | . . . . . . . . 5 7 6 6 6 1 3 5 3 . 1 . 4 5 . . . . . 2 2 . 1 Naked Turns . | . . . . . . . . . . . . . . . . . . . . . . . . . . . . . . . Heaviest Build 73 | 11 49 53 64 61 57 64 73 10 10 13 13 13 13 13 14 14 1 5 2 23 3 2 70 71 72 35 39 39 31 35 Greatest Support 114 | 20 40 42 42 40 40 40 60 10 14 14 14 14 14 14 15 15 5 5 5 23 4 3 114 114 114 29 41 40 26 35 Greatest Overweight (x) 4 | . 1 1 1 1 1 1 1 . 3 . . . . . . . . . . 2 . . 1 . 4 1 1 1 1 1 Average Overweight (x) . | . . 1 1 1 1 1 . . . . . . . . . . . . . . . . . . . . . . . . Largest Inventory Capacity 20 | . 20 20 20 20 20 20 20 20 5 5 5 5 5 5 5 5 5 5 5 5 5 5 8 8 8 5 5 5 5 5 Average Capacity 13 | . 17 20 20 20 20 20 20 6 5 5 5 5 5 5 5 5 5 5 5 5 5 5 6 8 6 5 5 5 5 5 Most Carried 20 | . 13 20 20 20 20 20 20 20 4 3 2 2 5 5 5 5 5 5 5 5 5 5 8 8 8 5 5 5 5 5 Average Carried 11 | . 9 17 19 19 20 19 18 6 4 2 2 1 4 4 4 3 5 4 5 4 5 5 5 7 5 4 3 4 4 4 Final Capacity 20 | 8 20 20 20 20 20 20 20 5 5 5 5 5 5 5 5 5 5 5 5 5 5 5 8 8 5 5 5 5 5 5 Final Carried 20 | 6 13 20 20 20 20 20 20 4 4 2 2 2 5 4 3 5 5 5 5 5 5 5 8 6 5 5 5 5 5 3 Class Distribution -------------------- 56% | Mutant 12% | Hacker-Scout 12% | Scavenger-Mutant 6% | Hacker-Mutant 4% | Wizard-Sprinter Dominant Class ---------------- Mutant | -10/Materials Mutant | -10/Mines Mutant | -9/Materials Mutant | -9/Mines Mutant | -9/Exiles Mutant | -8/Mines Mutant | -8/Materials Hacker-Scout | -7/Factory Hacker-Scout | -7/Storage Commander-Scout | -6/Factory Hacker-Scout | -6/Lower Caves Hacker-Scout | -6/Lower Caves Hacker-Scout | -6/Zion Hacker-Scout | -5/Proximity Caves Hacker-Scout | -5/Factory Mutant | -5/Upper Caves Mutant | -5/Upper Caves Mutant | -5/Zhirov Mutant | -4/Proximity Caves Scavenger-Sprinter | -4/Factory Mutant | -4/Upper Caves Mutant | -4/Upper Caves Hacker-Mutant | -4/Warlord Scavenger-Mutant | -3/Proximity Caves Scavenger-Mutant | -3/Research Hacker-Scout | -3/Quarantine Wizard-Sprinter | -2/Research Wizard-Sprinter | -2/Testing Wizard-Sprinter | -2/Section 7 Hacker-Sprinter | -1/Access Resources | -11 -10 -10 -9 -9 -9 -8 -8 -7 -7 -6 -6 -6 -6 -5 -5 -5 -5 -5 -4 -4 -4 -4 -4 -3 -3 -3 -2 -2 -2 -1 ----------- Run | Yrd Mat Min Mat Min Exi Min Mat Fac Sto Fac Low Low Zio Pro Fac Upp Upp Zhi Pro Fac Upp Upp War Pro Res Qua Res Tes Sec Acc Matter Collected 4172 | 200 151 203 343 242 . 135 1032 195 50 . 40 19 54 . . 70 . 102 20 137 . . 265 20 273 40 413 120 . 48 Remotely . | . . . . . . . . . . . . . . . . . . . . . . . . . . . . . . . Salvage Created 5930 | . 236 235 1254 96 . 133 1453 123 . . . 32 . . . 201 . 217 . 188 . . 149 607 566 . 330 73 . 37 Parts 269 | . 15 14 60 2 . 9 72 6 . . . 4 . . . 13 . . . 20 . . . 15 26 . 9 2 . 2 Haulers Intercepted 11 | . 1 . 4 . . . 3 . . . . . . . . . . . . . . . . . . . 3 . . . Recyclers Shooed 4 | . 1 . . . . . 1 1 . . . . . . . . . . . . . . . . 1 . . . . . Parts Field Recycled . | . . . . . . . . . . . . . . . . . . . . . . . . . . . . . . . Retrieved Matter . | . . . . . . . . . . . . . . . . . . . . . . . . . . . . . . . Parts Self-Destructed 29 | . . . . . . . . . . . . 2 . . . 2 1 . . . . . . 24 . . . . . . Prevented . | . . . . . . . . . . . . . . . . . . . . . . . . . . . . . . . Kills | -11 -10 -10 -9 -9 -9 -8 -8 -7 -7 -6 -6 -6 -6 -5 -5 -5 -5 -5 -4 -4 -4 -4 -4 -3 -3 -3 -2 -2 -2 -1 ------- Run | Yrd Mat Min Mat Min Exi Min Mat Fac Sto Fac Low Low Zio Pro Fac Upp Upp Zhi Pro Fac Upp Upp War Pro Res Qua Res Tes Sec Acc Combat Hostiles Destroyed 127 | . 6 7 27 14 . 3 24 . . . . 3 . . . 2 . . . 4 . . 1 16 10 . . . . 10 Melee 7 | . . . . . . . . . . . . . . . . 2 . . . 4 . . . . . . . . . 1 Guns 89 | . 6 7 26 3 . 3 22 . . . . . . . . . . . . . . . . 14 8 . . . . . AOE 29 | . . . . 11 . . 2 . . . . 3 . . . . . . . . . . . 2 2 . . . . 9 Classes Destroyed 21 | . 3 . 2 1 . . 9 . . . . . . . . 1 . . . . . . 1 2 . . . 1 . 1 Worker 6 | . . . . . . . 3 . . . . . . . . . . . . . . . . . . . 2 . . 1 Builder 1 | . . . . . . . 1 . . . . . . . . . . . . . . . . . . . . . . . Tunneler 6 | . . . . . . . 1 . . . . . . . . . . . . 4 . . . . 1 . . . . . Hauler 11 | . 1 . 4 . . . 3 . . . . . . . . . . . . . . . . . . . 3 . . . Recycler 4 | . . . . . . . 2 1 . . . . . . . . . . . . . . . . 1 . . . . . Operator 2 | . . . 1 . . . . . . . . . . . . . . . . . . . . . 1 . . . . . Watcher 5 | . . . . . . . 2 2 . . . . . . . . . . . . . . . . 1 . . . . . Swarmer 41 | . 3 3 7 . . . 7 . . . . 3 . . . 1 . . . 4 . . . 3 6 . . . . 4 Cutter 1 | . . . . . . . . . . . . . . . . . . . . . . . . . . . . . . 1 Grunt 36 | . 3 4 13 . . 3 6 . . . . . . . . . . . . . . . . 6 1 . . . . . Brawler 1 | . . . . . . . 1 . . . . . . . . . . . . . . . . . . . . . . . Duelist 2 | . . . . . . . . . . . . . . . . . . . . . . . . 2 . . . . . . Researcher 1 | . . . . . . . . . . . . . . . . . . . . . . . . . . . . 1 . . Sentry 16 | . . . 7 1 . . 4 . . . . . . . . 1 . . . . . . . 1 2 . . . . . Specialist 6 | . . . . . . . 4 . . . . . . . . . . . . . . . . . . . . . . 2 Hunter 4 | . . . . . . . 1 . . . . . . . . . . . . . . . . 3 . . . . . . Programmer 3 | . . . . . . . . . . . . . . . . . . . . . . . . 1 1 . . . . 1 Heavy 2 | . . . . . . . 1 . . . . . . . . . . . . . . . . . . . . . . 1 Behemoth 2 | . . . . . . . . . . . . . . . . . . . . . . . 1 . . . . . . 1 Samaritan 2 | . . . . . . . . . . . . . . . . 2 . . . . . . . . . . . . . . Assembled 13 | . . . . 13 . . . . . . . . . . . . . . . . . . . . . . . . . . Best Kill Streak 13 | . 2 3 4 13 . 3 5 1 . . . 3 . . . 1 . . . 4 . . 1 6 5 . 1 1 . 10 Combat Bots Only 13 | . 2 3 4 13 . 3 4 . . . . 3 . . . 1 . . . 4 . . 1 6 4 . . . . 9 Max Kills in Single Turn 10 | . 1 1 1 6 . 1 2 1 . . . 2 . . . 1 . . . 1 . . 1 2 3 . 1 1 . 10 Gunslinging 1 | . . . . . . . . . . . . . . . . . . . . . . . . 1 . . . . . . Exploded 9 | . . . . 6 . . 2 . . . . 2 . . . . . . . . . . . 1 2 . . . . 9 Melee 1 | . . . . . . . . . . . . . . . . 1 . . . 1 . . . . . . . . . 1 Uniques/NPCs Destroyed . | . . . . . . . . . . . . . . . . . . . . . . . . . . . . . . . Combat | -11 -10 -10 -9 -9 -9 -8 -8 -7 -7 -6 -6 -6 -6 -5 -5 -5 -5 -5 -4 -4 -4 -4 -4 -3 -3 -3 -2 -2 -2 -1 -------- Run | Yrd Mat Min Mat Min Exi Min Mat Fac Sto Fac Low Low Zio Pro Fac Upp Upp Zhi Pro Fac Upp Upp War Pro Res Qua Res Tes Sec Acc Hostile Shots Fired 1373 | . 36 76 151 47 . 36 184 10 . . 5 9 . . 5 63 . . 60 61 31 48 . 159 171 10 19 2 12 178 Missed 558 | . 13 22 40 18 . 7 65 7 . . 2 4 . . 1 24 . . 29 32 16 23 . 52 76 6 11 1 10 99 Damage Taken 15666 | . 373 339 1207 555 . 498 1951 22 . . 74 112 . . 483 812 . . 501 883 303 464 41 1276 2090 89 259 404 70 2860 Core 4956 | . 22 91 199 45 . 17 90 17 . . 35 18 . . 93 245 . . 418 257 251 416 21 50 731 45 34 73 20 1768 Absorbed by Shields 1656 | . . 204 72 . . . . . . . . . . . . . . . . . . . 20 1085 275 . . . . . Redirected to Shielding 45 | . . . . . . . . . . . . . . . . . . . . . . . . 17 28 . . . . . Regen/Repaired (Parts) 207 | . . . . . . . . . . . . . . . . . . . . . . . . . . . 79 78 . 50 Core Remaining (%) 62 | 100 . 54 . . . 34 83 . 97 . . . . 93 . . . . 24 . . . . 13 . 34 . . 91 . Volleys Fired 340 | . 25 33 94 15 . 13 94 . . . . 3 . . . . . . . . . . 4 30 28 . . . . 1 Largest 2 | . 2 2 2 2 . 2 2 . . . . 1 . . . . . . . . . . 2 2 2 . . . . 1 Hottest 131 | . 60 40 131 59 . 46 61 . . . . 33 . . . . . . . . . . 80 120 120 . . . . . Shots Fired 649 | . 52 66 185 27 . 24 188 . . . . 3 . . . . . . . . . . 8 60 35 . . . . 1 Gun 636 | . 52 66 185 21 . 24 185 . . . . . . . . . . . . . . . 8 60 35 . . . . . Cannon . | . . . . . . . . . . . . . . . . . . . . . . . . . . . . . . . Launcher 13 | . . . . 6 . . 3 . . . . 3 . . . . . . . . . . . . . . . . . 1 Special . | . . . . . . . . . . . . . . . . . . . . . . . . . . . . . . . Kinetic 374 | . 26 66 41 21 . 24 185 . . . . . . . . . . . . . . . . . 11 . . . . . Thermal 173 | . 26 . 144 . . . . . . . . . . . . . . . . . . . 2 . . . . . . 1 Explosive 12 | . . . . 6 . . 3 . . . . 3 . . . . . . . . . . . . . . . . . . Electromagnetic 6 | . . . . . . . . . . . . . . . . . . . . . . . . . 6 . . . . . Entropic 84 | . . . . . . . . . . . . . . . . . . . . . . . 6 60 18 . . . . . Robot Hit Streak 16 | . 9 10 16 5 . 12 15 . . . . . . . . . . . . . . . 5 10 7 . . . . . Robot Miss Streak 7 | . 5 4 5 3 . 2 7 . . . . 1 . . . . . . . . . . 1 5 7 . . . . . Penetration Max 1 | . . . . . . . 1 . . . . . . . . . . . . . . . . . . . . . . . Secondary Targets 18 | . 1 3 . 2 . 1 5 . . . . . . . . . . . . . . . . 5 1 . . . . . Max Gunslinging Chain 1 | . 1 1 . 1 . 1 1 . . . . . . . . . . . . . . . . 1 1 . . . . . Shots Hit Robots 452 | . 27 37 126 18 . 19 97 8 1 . . . . . . 21 . 3 . 11 . . 7 41 24 . 9 2 . 1 Core Hits 260 | . 13 14 46 27 . 13 55 3 . . . 5 . . . 6 . 2 . 8 . . 1 30 26 . 5 1 . 5 Critical Kills 11 | . . . 1 . . 2 8 . . . . . . . . . . . . . . . . . . . . . . . Critical Parts Destroyed 9 | . . 1 2 . . . 2 . . . . . . . . . . . . . . . . 2 2 . . . . . Critical Strikes 38 | . . 1 15 . . 2 11 . . . . . . . . 3 . . . . . . . 2 3 . 1 . . . Burn 12 | . . . 12 . . . . . . . . . . . . . . . . . . . . . . . . . . . Destroy 18 | . . 1 3 . . 2 11 . . . . . . . . . . . . . . . . . 1 . . . . . Corrupt 1 | . . . . . . . . . . . . . . . . . . . . . . . . . 1 . . . . . Sever 4 | . . . . . . . . . . . . . . . . 3 . . . . . . . . . . 1 . . . Detonate 3 | . . . . . . . . . . . . . . . . . . . . . . . . 2 1 . . . . . Melee Attacks 160 | . . . . . . . 6 16 13 4 . . 1 3 16 28 . 3 . 22 . . . . 16 4 13 8 1 6 Impact . | . . . . . . . . . . . . . . . . . . . . . . . . . . . . . . . Slashing 158 | . . . . . . . 6 16 13 4 . . 1 3 16 28 . 3 . 22 . . . . 16 4 13 8 1 4 Piercing 2 | . . . . . . . . . . . . . . . . . . . . . . . . . . . . . . 2 Sneak Attacks 16 | . . . . . . . . 1 . . . . . . . 3 . . . 4 . . . . 1 . 5 2 . . Combat Hostiles . | . . . . . . . . . . . . . . . . . . . . . . . . . . . . . . . Follow-up Attacks 4 | . . . . . . . . . . . . . . . . 4 . . . . . . . . . . . . . . Damage Inflicted 23276 | . 313 385 2122 1008 . 312 2156 354 47 . . 162 . . . 929 . 191 . 512 . . 318 2175 1244 . 1024 391 . 9633 Guns 8509 | . 313 385 2122 210 . 312 1938 . . . . . . . . . . . . . . . 318 1990 921 . . . . . Cannons . | . . . . . . . . . . . . . . . . . . . . . . . . . . . . . . . Explosions 11086 | . . . . 794 . . 218 . . . . 162 . . . . . . . . . . . 185 186 . . . . 9541 Melee 3677 | . . . . . . . . 354 47 . . . . . . 929 . 191 . 512 . . . . 137 . 1024 391 . 92 Ramming 4 | . . . . 4 . . . . . . . . . . . . . . . . . . . . . . . . . . Kinetic 3496 | . 162 385 361 210 . 312 1938 . . . . . . . . . . . . . . . . . 128 . . . . . Thermal 11852 | . 151 . 1761 . . . . . . . . . . . . . . . . . . . 28 185 186 . . . . 9541 Explosive 1174 | . . . . 794 . . 218 . . . . 162 . . . . . . . . . . . . . . . . . . Electromagnetic 108 | . . . . . . . . . . . . . . . . . . . . . . . . . 108 . . . . . Impact . | . . . . . . . . . . . . . . . . . . . . . . . . . . . . . . . Slashing 3677 | . . . . . . . . 354 47 . . . . . . 929 . 191 . 512 . . . . 137 . 1024 391 . 92 Piercing . | . . . . . . . . . . . . . . . . . . . . . . . . . . . . . . . Entropic 2965 | . . . . . . . . . . . . . . . . . . . . . . . 290 1990 685 . . . . . Highest Corruption 14 | . 3 3 . . . . 4 . . . . . . . 14 6 6 6 14 . . 2 2 . 7 8 . 11 11 5 Average Corruption 4 | . 2 3 . . . . 4 . . . . . . . 6 6 6 6 6 . . 2 2 . 3 7 . 11 11 3 Corruption Purged . | . . . . . . . . . . . . . . . . . . . . . . . . . . . . . . . Corruption Blocked 33 | . . . . . . . . . . . . . . . . . . . . . . . 18 . . 15 . . . . Effects 137 | . 22 8 . . . . 46 . . . . . . . 1 7 1 1 3 . . 1 . . 15 14 . 10 5 3 Message Errors 30 | . 2 2 . . . . 11 . . . . . . . 1 2 . 1 2 . . . . . 3 2 . 1 2 1 Matter Fused 38 | . 7 3 . . . . 13 . . . . . . . . 4 . . . . . . . . 4 3 . 2 1 1 Heat Flow Errors 16 | . 3 . . . . . 8 . . . . . . . . . . . . . . . . . 1 1 . 2 1 . Energy Discharges 15 | . 4 1 . . . . 3 . . . . . . . . 1 . . . . . . . . 2 3 . . . 1 Parts Rejected 2 | . . . . . . . . . . . . . . . . . . . 1 . . . . . . . . 1 . . Parts Fused 3 | . . . . . . . 3 . . . . . . . . . . . . . . . . . . . . . . . Data Loss (minor) 17 | . 1 2 . . . . 3 . . . . . . . . . 1 . . . . . . . 3 3 . 3 1 . Data Loss (major) 4 | . 1 . . . . . 1 . . . . . . . . . . . . . . 1 . . 1 . . . . . Misfires 3 | . 2 . . . . . 1 . . . . . . . . . . . . . . . . . . . . . . . Alerts 7 | . 2 . . . . . 2 . . . . . . . . . . . . . . . . . 1 2 . . . . Misdirections 1 | . . . . . . . . . . . . . . . . . . . . . . . . . . . . 1 . . Weapon Failures 1 | . . . . . . . 1 . . . . . . . . . . . . . . . . . . . . . . . Overload Shots . | . . . . . . . . . . . . . . . . . . . . . . . . . . . . . . . Overflow Damage 1857 | . . . . 37 . . . 63 17 . . . . . . 14 . 43 . 35 . . . . 102 . . 61 . 1485 Projectiles . | . . . . . . . . . . . . . . . . . . . . . . . . . . . . . . . Explosions 1522 | . . . . 37 . . . . . . . . . . . . . . . . . . . . . . . . . 1485 Melee 335 | . . . . . . . . 63 17 . . . . . . 14 . 43 . 35 . . . . 102 . . 61 . . Knockbacks . | . . . . . . . . . . . . . . . . . . . . . . . . . . . . . . . Impact . | . . . . . . . . . . . . . . . . . . . . . . . . . . . . . . . Kinetic . | . . . . . . . . . . . . . . . . . . . . . . . . . . . . . . . Secondary . | . . . . . . . . . . . . . . . . . . . . . . . . . . . . . . . Self-Inflicted Damage 1173 | . . . . 132 . . 58 . . . . 33 . . . . . . . . . . . 43 14 . . . . 893 Shots 9 | . . . . 3 . . 2 . . . . 1 . . . . . . . . . . . 1 1 . . . . 1 Rammed 4 | . . . 1 2 . . . . . . . . . . . . . . . . . . . . . . 1 . . . Targets Rammed 4 | . . . 1 2 . . . . . . . . . . . . . . . . . . . . . . 1 . . . Kicked . | . . . . . . . . . . . . . . . . . . . . . . . . . . . . . . . Crushed . | . . . . . . . . . . . . . . . . . . . . . . . . . . . . . . . Highest Temperature 493 | . 212 16 493 11 . 39 258 . . . . . . . . . . . . . . . . . 99 . . 427 233 . Average Temperature 101 | . 36 6 132 6 . 19 101 . . . . . . . . . . . . . . . . . 75 . . 162 131 . Received Heat Transfer 1964 | . 24 106 380 127 . 279 459 6 . . 18 9 . . 27 81 . . 18 9 18 57 9 116 56 . 27 21 9 108 Effects 5 | . . . 4 . . . . . . . . . . . . . . . . . . . . . . . . 1 . . Damage (minor) 2 | . . . 1 . . . . . . . . . . . . . . . . . . . . . . . . 1 . . Damage (major) 3 | . . . 3 . . . . . . . . . . . . . . . . . . . . . . . . . . . Siege Activations . | . . . . . . . . . . . . . . . . . . . . . . . . . . . . . . . Robots Corrupted . | . . . . . . . . . . . . . . . . . . . . . . . . . . . . . . . Combat Hostiles . | . . . . . . . . . . . . . . . . . . . . . . . . . . . . . . . Parts Fried 4 | . . . . . . . . . . . . . . . . . . . . . . . . . 4 . . . . . Impact Corruptions . | . . . . . . . . . . . . . . . . . . . . . . . . . . . . . . . Robots Melted 3 | . . . 2 . . . . . . . . . . . . . . . . . . . 1 . . . . . . . Combat Hostiles 2 | . . . 1 . . . . . . . . . . . . . . . . . . . 1 . . . . . . . Parts Melted 29 | . . . 22 . . . . . . . . . . . . . . . . . . . 7 . . . . . . . Heat Transferred 5433 | . 350 . 4625 . . . . . . . . . . . . . . . . . . . 38 100 200 . . . . 120 Parts Sabotaged 1 | . . . . . . . . . . . . . . . . . . . . . . . . 1 . . . . . . Parts Stolen . | . . . . . . . . . . . . . . . . . . . . . . . . . . . . . . . Parts Stripped . | . . . . . . . . . . . . . . . . . . . . . . . . . . . . . . . Power Chain Reactions . | . . . . . . . . . . . . . . . . . . . . . . . . . . . . . . . Alert | -11 -10 -10 -9 -9 -9 -8 -8 -7 -7 -6 -6 -6 -6 -5 -5 -5 -5 -5 -4 -4 -4 -4 -4 -3 -3 -3 -2 -2 -2 -1 ------- Run | Yrd Mat Min Mat Min Exi Min Mat Fac Sto Fac Low Low Zio Pro Fac Upp Upp Zhi Pro Fac Upp Upp War Pro Res Qua Res Tes Sec Acc Peak Influence 567 | . 116 120 381 129 . 65 308 197 156 84 . . . . 55 . . . . 276 . . . . 567 376 145 333 231 521 Initial 318 | . . . 19 129 . . 25 41 89 70 . . . . . . . . . 15 . . . . 300 318 4 81 186 17 Average 142 | . 44 37 225 44 . 57 117 98 134 74 . . . . 16 . . . . 127 . . . . 396 147 63 191 189 174 Maximum Alert Level 2 | . . . 1 . . . 1 . . . . . . . . . . . . 1 . . . . 2 1 . 1 1 2 Low Security (%) 73 | . 100 100 41 100 . 100 85 100 100 100 . . . . 100 . . . . 91 . . . . . 60 100 77 16 61 Level 1 21 | . . . 58 . . . 14 . . . . . . . . . . . . 8 . . . . 44 39 . 22 83 26 Level 2 5 | . . . . . . . . . . . . . . . . . . . . . . . . . 55 . . . . 11 Level 3 . | . . . . . . . . . . . . . . . . . . . . . . . . . . . . . . . Level 4 . | . . . . . . . . . . . . . . . . . . . . . . . . . . . . . . . Level 5 . | . . . . . . . . . . . . . . . . . . . . . . . . . . . . . . . High Security . | . . . . . . . . . . . . . . . . . . . . . . . . . . . . . . . Max Security . | . . . . . . . . . . . . . . . . . . . . . . . . . . . . . . . Squads Dispatched 40 | . 1 1 6 . . . 3 2 1 1 . . . . 3 . . . . 2 . . . 1 7 . . 4 . 8 Investigation 6 | . . 1 2 . . . . . . . . . . . 2 . . . . . . . . . . . . 1 . . Extermination 4 | . . . . . . . . 1 . . . . . . . . . . . 1 . . . . 1 . . 1 . . Reinforcement 22 | . 1 . 4 . . . 3 1 1 1 . . . . 1 . . . . 1 . . . . 3 . . 2 . 4 Assault 2 | . . . . . . . . . . . . . . . . . . . . . . . . 1 . . . . . 1 Garrison 6 | . . . . . . . . . . . . . . . . . . . . . . . . . 3 . . . . 3 Intercept . | . . . . . . . . . . . . . . . . . . . . . . . . . . . . . . . Searches Triggered . | . . . . . . . . . . . . . . . . . . . . . . . . . . . . . . . Construction Impeded . | . . . . . . . . . . . . . . . . . . . . . . . . . . . . . . . Haulers Reinforced . | . . . . . . . . . . . . . . . . . . . . . . . . . . . . . . . Active Scanning Responses . | . . . . . . . . . . . . . . . . . . . . . . . . . . . . . . . Cargo Convoy Interrupts . | . . . . . . . . . . . . . . . . . . . . . . . . . . . . . . . Stealth | -11 -10 -10 -9 -9 -9 -8 -8 -7 -7 -6 -6 -6 -6 -5 -5 -5 -5 -5 -4 -4 -4 -4 -4 -3 -3 -3 -2 -2 -2 -1 --------- Run | Yrd Mat Min Mat Min Exi Min Mat Fac Sto Fac Low Low Zio Pro Fac Upp Upp Zhi Pro Fac Upp Upp War Pro Res Qua Res Tes Sec Acc Distress Signals 37 | . 1 . 6 . . . 2 . 1 . . . . . 1 . . . . 1 . . 1 . 3 1 12 1 3 4 Communications Jammed 3 | . . . . . . . . . . . . . . . . . . . . . . . . . . . . . . 3 Distress Signals 3 | . . . . . . . . . . . . . . . . . . . . . . . . . . . . . . 3 Times Spotted 393 | . 18 7 50 25 . 3 33 7 1 . 3 4 . . 3 13 . . 9 18 3 11 25 21 43 8 17 7 10 54 Peak Tracking Total 27 | . 3 3 7 10 . 3 5 3 2 . 3 4 . . 8 5 . . 8 15 3 10 9 8 12 2 6 3 11 27 Tactical Retreats 52 | . 2 . 5 2 . . 1 2 1 . . . . . . 4 . . 1 4 . 2 . . 10 . 5 1 1 11 Traps | -11 -10 -10 -9 -9 -9 -8 -8 -7 -7 -6 -6 -6 -6 -5 -5 -5 -5 -5 -4 -4 -4 -4 -4 -3 -3 -3 -2 -2 -2 -1 ------- Run | Yrd Mat Min Mat Min Exi Min Mat Fac Sto Fac Low Low Zio Pro Fac Upp Upp Zhi Pro Fac Upp Upp War Pro Res Qua Res Tes Sec Acc Traps Triggered 22 | . 5 . 2 . . . . 1 . 3 . . . . 1 . . . . 2 . . . . 2 . . 2 1 3 Indirectly . | . . . . . . . . . . . . . . . . . . . . . . . . . . . . . . . Trap Hack Attempts . | . . . . . . . . . . . . . . . . . . . . . . . . . . . . . . . Triggered . | . . . . . . . . . . . . . . . . . . . . . . . . . . . . . . . Disarmed 4 | . . . . . . . . . . . . . . . . . . . . . . . . . . 4 . . . . Reprogrammed . | . . . . . . . . . . . . . . . . . . . . . . . . . . . . . . . Reused . | . . . . . . . . . . . . . . . . . . . . . . . . . . . . . . . Traps Extracted . | . . . . . . . . . . . . . . . . . . . . . . . . . . . . . . . Installed 2 | . . . . . . . . . . . . . . . . . . . . . . 2 . . . . . . . . Triggered 9 | . . . . . . . . . . . . . . . . . . . . . . . 8 1 . . . . . . Machines | -11 -10 -10 -9 -9 -9 -8 -8 -7 -7 -6 -6 -6 -6 -5 -5 -5 -5 -5 -4 -4 -4 -4 -4 -3 -3 -3 -2 -2 -2 -1 ---------- Run | Yrd Mat Min Mat Min Exi Min Mat Fac Sto Fac Low Low Zio Pro Fac Upp Upp Zhi Pro Fac Upp Upp War Pro Res Qua Res Tes Sec Acc Machines Disabled 15 | . . . 1 . . 1 5 . 2 . . . . . . . . . . . . . . 1 . 1 . 2 1 1 Max in Single Turn 1 | . . . 1 . . 1 1 . 1 . . . . . . . . . . . . . . 1 . 1 . 1 1 1 Garrison Access 6 | . . . . . . . 1 1 . . . . . . . . . . . . . . . . . 1 1 1 . 1 Machines Repaired . | . . . . . . . . . . . . . . . . . . . . . . . . . . . . . . . Machines Dismantled 3 | . . . . . . . . . . . . . . . . . . . . . . . . . . 3 . . . . Machines Sabotaged . | . . . . . . . . . . . . . . . . . . . . . . . . . . . . . . . Overloaded Fab Kills . | . . . . . . . . . . . . . . . . . . . . . . . . . . . . . . . Hacking | -11 -10 -10 -9 -9 -9 -8 -8 -7 -7 -6 -6 -6 -6 -5 -5 -5 -5 -5 -4 -4 -4 -4 -4 -3 -3 -3 -2 -2 -2 -1 --------- Run | Yrd Mat Min Mat Min Exi Min Mat Fac Sto Fac Low Low Zio Pro Fac Upp Upp Zhi Pro Fac Upp Upp War Pro Res Qua Res Tes Sec Acc Machines Accessed 80 | . . 1 . . 1 . 6 3 7 1 . . . . 7 . . 7 . 5 . . 8 . 7 11 4 6 5 1 Terminals 49 | . . . . . . . 5 2 7 1 . . . . 5 . . . . 3 . . . . 5 10 1 4 5 1 Fabricators 7 | . . . . . . . . . . . . . . . 2 . . . . 2 . . . . 1 . 1 1 . . Repair Stations . | . . . . . . . . . . . . . . . . . . . . . . . . . . . . . . . Recycling Units . | . . . . . . . . . . . . . . . . . . . . . . . . . . . . . . . Scanalyzers . | . . . . . . . . . . . . . . . . . . . . . . . . . . . . . . . Garrison Access 7 | . . . . . . . 1 1 . . . . . . . . . . . . . . . . 1 1 2 1 . . Total Hacks 316 | . . 1 . . 4 . 17 8 11 6 . . . . 21 . . 46 . 11 . . 12 . 29 79 11 36 22 2 Successful 192 | . . 1 . . 4 . 13 4 6 4 . . . . 13 . . 46 . 5 . . 12 . 9 36 5 18 15 1 Failed 124 | . . . . . . . 4 4 5 2 . . . . 8 . . . . 6 . . . . 20 43 6 18 7 1 Catastrophic 26 | . . . . . . . . 1 2 . . . . . . . . . . 2 . . . . 3 7 2 6 3 . Database Lockouts . | . . . . . . . . . . . . . . . . . . . . . . . . . . . . . . . Manual 135 | . . . . . . . 8 3 8 3 . . . . 17 . . . . 8 . . . . 16 37 . 21 12 2 Terminals 226 | . . . . . . . 16 7 11 6 . . . . 18 . . . . 7 . . . . 24 75 6 32 22 2 Fabricators 15 | . . . . . . . . . . . . . . . 3 . . . . 4 . . . . 4 . 1 3 . . Repair Stations . | . . . . . . . . . . . . . . . . . . . . . . . . . . . . . . . Recycling Units . | . . . . . . . . . . . . . . . . . . . . . . . . . . . . . . . Scanalyzers . | . . . . . . . . . . . . . . . . . . . . . . . . . . . . . . . Garrison Access 12 | . . . . . . . 1 1 . . . . . . . . . . . . . . . . 1 4 4 1 . . Terminal Hacks 132 | . . 1 . . 4 . 6 2 4 2 . . . . 4 . . 46 . . . . 12 . 4 26 3 10 8 . Record 54 | . . . . . 4 . . . . . . . . . . . . 34 . . . . 11 . 1 4 . . . . Part Schematic 7 | . . . . . . . . . . 1 . . . . 1 . . 4 . . . . . . . . . 1 . . Robot Analysis 4 | . . . . . . . . . . . . . . . . . . 4 . . . . . . . . . . . . Prototype ID Bank 6 | . . . . . . . . 1 . . . . . . . . . 4 . . . . . . . 1 . . . . Open Door 7 | . . 1 . . . . . . 2 . . . . . . . . . . . . . 1 . 1 1 . 1 . . Level Access Points 2 | . . . . . . . . . . . . . . . . . . . . . . . . . . 1 . . 1 . Branch Access Points 7 | . . . . . . . . 1 1 1 . . . . 1 . . . . . . . . . 1 1 1 . . . Emergency Access Points 1 | . . . . . . . . . . . . . . . . . . . . . . . . . . . . . 1 . Machine Index 2 | . . . . . . . . . . . . . . . . . . . . . . . . . . . 1 1 . . Terminal Index 3 | . . . . . . . . . . . . . . . . . . . . . . . . . . 1 1 . 1 . Garrison Index 2 | . . . . . . . . . . . . . . . . . . . . . . . . . . 1 . . 1 . Unreport Threat 9 | . . . . . . . 2 . . . . . . . . . . . . . . . . . . 4 . . 3 . Locate Traps 7 | . . . . . . . . . 1 . . . . . 1 . . . . . . . . . . 3 . 2 . . Disarm Traps 1 | . . . . . . . . . . . . . . . . . . . . . . . . . . 1 . . . . Dispatch Records 2 | . . . . . . . . . . . . . . . . . . . . . . . . . . 1 . 1 . . Security Status 1 | . . . . . . . . . . . . . . . . . . . . . . . . . . 1 . . . . Surveillance Status 1 | . . . . . . . . . . . . . . . . . . . . . . . . . . 1 . . . . Patrol Status 1 | . . . . . . . . . . . . . . . . . . . . . . . . . . 1 . . . . Recall Reinforcements 1 | . . . . . . . . . . . . . . . . . . . . . . . . . . . . 1 . . Hauler Manifests 2 | . . . . . . . 1 . . . . . . . . . . . . . . . . . . 1 . . . . Registered Components 3 | . . . . . . . 1 . . . . . . . . . . . . . . . . . . 1 . 1 . . Registered Prototypes 1 | . . . . . . . . . . . . . . . . . . . . . . . . . . . . 1 . . Zone Layout 8 | . . . . . . . 2 . . . . . . . 1 . . . . . . . . . 1 2 . 1 1 . Fabricator Hacks 6 | . . . . . . . . . . . . . . . 1 . . . . 2 . . . . 1 . 1 1 . . Network Status 5 | . . . . . . . . . . . . . . . 1 . . . . 1 . . . . 1 . 1 1 . . Build 1 | . . . . . . . . . . . . . . . . . . . . 1 . . . . . . . . . . Repair Station Hacks . | . . . . . . . . . . . . . . . . . . . . . . . . . . . . . . . Recycling Unit Hacks . | . . . . . . . . . . . . . . . . . . . . . . . . . . . . . . . Scanalyzer . | . . . . . . . . . . . . . . . . . . . . . . . . . . . . . . . Garrison Access Hacks 5 | . . . . . . . 1 1 . . . . . . . . . . . . . . . . . 1 1 1 . . Seal Access 5 | . . . . . . . 1 1 . . . . . . . . . . . . . . . . . 1 1 1 . . Unauthorized Hacks 48 | . . . . . . . 5 1 2 2 . . . . 8 . . . . 3 . . . . 4 9 . 6 7 1 Terminals 44 | . . . . . . . 5 1 2 2 . . . . 6 . . . . 3 . . . . 3 9 . 5 7 1 Track 5 | . . . . . . . . . 1 . . . . . . . . . . . . . . . . 2 . 1 1 . Assimilate 4 | . . . . . . . . . . . . . . . . . . . . . . . . . . 2 . 1 1 . Botnet 29 | . . . . . . . 5 1 1 1 . . . . 5 . . . . 3 . . . . 3 4 . 2 3 1 Disrupt 1 | . . . . . . . . . . . . . . . . . . . . . . . . . . . . . 1 . Operators 5 | . . . . . . . . . . 1 . . . . 1 . . . . . . . . . . 1 . 1 1 . Fabricators 4 | . . . . . . . . . . . . . . . 2 . . . . . . . . . 1 . . 1 . . Fabnet 4 | . . . . . . . . . . . . . . . 2 . . . . . . . . . 1 . . 1 . . Repair Stations . | . . . . . . . . . . . . . . . . . . . . . . . . . . . . . . . Recycling Units . | . . . . . . . . . . . . . . . . . . . . . . . . . . . . . . . Scanalyzers . | . . . . . . . . . . . . . . . . . . . . . . . . . . . . . . . Garrison Access . | . . . . . . . . . . . . . . . . . . . . . . . . . . . . . . . Data Cores Recovered 1 | . . . . . . . . . . . . . . . . . . . . . . . . . . . . 1 . . Used . | . . . . . . . . . . . . . . . . . . . . . . . . . . . . . . . Hacking Detections 45 | . . . . . . . 3 2 4 1 . . . . 7 . . . . 5 . . . . 4 8 2 4 4 1 Full Trace Events 2 | . . . . . . . . . . . . . . . 2 . . . . . . . . . . . . . . . Feedback Events 2 | . . . . . . . . . . . . . . . 2 . . . . . . . . . . . . . . . Corruption 1 | . . . . . . . . . . . . . . . 1 . . . . . . . . . . . . . . . Hackware Fried 1 | . . . . . . . . . . . . . . . 1 . . . . . . . . . . . . . . . Feedback Blocked . | . . . . . . . . . . . . . . . . . . . . . . . . . . . . . . . Robot Schematics Acquired 5 | . . . . . . . . . . . . . 4 . . . . . . . . . . . . . . 1 . . Robots Built 2 | . . . . . . . . . . . . . . . . . . . . 2 . . . . . . . . . . Authchips . | . . . . . . . . . . . . . . . . . . . . . . . . . . . . . . . Time 76 | . . . . . . . . . . . . . . . . . . . . 76 . . . . . . . . . . Total Robot Build Rating 10 | . . . . . . . . . . . . . . . . . . . . 10 . . . . . . . . . . Part Schematics Acquired 25 | . . . . . . . . . . 1 . . 13 . 1 . . 4 . . . . . . . . . 6 . . Parts Built . | . . . . . . . . . . . . . . . . . . . . . . . . . . . . . . . Authchips . | . . . . . . . . . . . . . . . . . . . . . . . . . . . . . . . Time . | . . . . . . . . . . . . . . . . . . . . . . . . . . . . . . . Total Part Build Rating . | . . . . . . . . . . . . . . . . . . . . . . . . . . . . . . . Parts Repaired . | . . . . . . . . . . . . . . . . . . . . . . . . . . . . . . . Time . | . . . . . . . . . . . . . . . . . . . . . . . . . . . . . . . Parts Recycled . | . . . . . . . . . . . . . . . . . . . . . . . . . . . . . . . Recycled Matter . | . . . . . . . . . . . . . . . . . . . . . . . . . . . . . . . Retrieved Matter . | . . . . . . . . . . . . . . . . . . . . . . . . . . . . . . . Retrieved Components . | . . . . . . . . . . . . . . . . . . . . . . . . . . . . . . . Parts Scanalyzed . | . . . . . . . . . . . . . . . . . . . . . . . . . . . . . . . Part Schematics Acquired . | . . . . . . . . . . . . . . . . . . . . . . . . . . . . . . . Parts Damaged . | . . . . . . . . . . . . . . . . . . . . . . . . . . . . . . . Bothacking | -11 -10 -10 -9 -9 -9 -8 -8 -7 -7 -6 -6 -6 -6 -5 -5 -5 -5 -5 -4 -4 -4 -4 -4 -3 -3 -3 -2 -2 -2 -1 ------------ Run | Yrd Mat Min Mat Min Exi Min Mat Fac Sto Fac Low Low Zio Pro Fac Upp Upp Zhi Pro Fac Upp Upp War Pro Res Qua Res Tes Sec Acc Used RIF Installer . | . . . . . . . . . . . . . . . . . . . . . . . . . . . . . . . Robots Hacked 15 | . . . . . . . . . . . . . . . . . . . . . 1 . 3 . 2 . 2 2 . 5 Non-combat . | . . . . . . . . . . . . . . . . . . . . . . . . . . . . . . . Combat 15 | . . . . . . . . . . . . . . . . . . . . . 1 . 3 . 2 . 2 2 . 5 Robot Hacks Applied . | . . . . . . . . . . . . . . . . . . . . . . . . . . . . . . . Relay Couplers Released 2 | . . . . . . . . . . . . . . . . . . . . . . . . . 1 . . . . 1 Machine Destruction 1 | . . . . . . . . . . . . . . . . . . . . . . . . . . . . . . 1 Programmers 1 | . . . . . . . . . . . . . . . . . . . . . . . . . 1 . . . . . Fabnet Peak Effective % 6 | . . . . . . . . . . . . . . . . . . . 6 6 6 6 6 2 2 2 3 3 3 4 Autooverrided 15 | . . . . . . . . . . . . . . . . . . . . . 1 . 3 . 2 . 2 2 . 5 Robots Rewired 8 | . . . . . . . . . . . . . . . . 1 . . . . . . 5 2 . . . . . . Allies Hacked 2 | . . . . . . . . . . . . . . . . . . . . . . . . 1 . . . . . 1 Hacks Repelled 1 | . . . . . . . . . . . . . . . . . . . . . . . . . . . . . . 1 Allies | -11 -10 -10 -9 -9 -9 -8 -8 -7 -7 -6 -6 -6 -6 -5 -5 -5 -5 -5 -4 -4 -4 -4 -4 -3 -3 -3 -2 -2 -2 -1 -------- Run | Yrd Mat Min Mat Min Exi Min Mat Fac Sto Fac Low Low Zio Pro Fac Upp Upp Zhi Pro Fac Upp Upp War Pro Res Qua Res Tes Sec Acc Total Allies 39 | . . . . . . . . . 10 . . . . . . 1 . . . 2 1 . 8 2 2 2 2 3 1 5 Largest Group 10 | . . . . . . . . . 10 10 5 . . . . 1 . . . 2 1 . 6 5 4 2 1 1 1 1 Highest-Rated Group 327 | . . . . . . . . . 173 173 80 . . . . 30 . . . 28 47 . 327 301 254 71 69 62 45 219 Highest-Rated Ally 219 | . . . . . . . . . 29 29 16 . . . . 30 . . . 14 47 . 65 65 65 45 69 62 45 219 Total Orders 10 | . . . . . . . . . . . . . . . . . . . . . . . 7 . . . . . 1 2 STAY 3 | . . . . . . . . . . . . . . . . . . . . . . . 2 . . . . . 1 . FOLLOW 5 | . . . . . . . . . . . . . . . . . . . . . . . 5 . . . . . . . EXPLORE 2 | . . . . . . . . . . . . . . . . . . . . . . . . . . . . . . 2 Ally Attacks 102 | . . . . . . . . . . 16 16 . . . . 3 . . . . 2 . 33 12 8 . 1 . . 11 Total Damage 2727 | . . . . . . . . . . 156 241 . . . . . . . . . 79 . 945 555 286 . 20 . . 445 Kills 11 | . . . . . . . . . . . . . . . . . . . . . . . 4 3 2 . . . . 2 Allies Corrupted . | . . . . . . . . . . . . . . . . . . . . . . . . . . . . . . . Allies Melted 3 | . . . . . . . . . . . . . . . . . . . . . . . 1 . . . 2 . . . Intel | -11 -10 -10 -9 -9 -9 -8 -8 -7 -7 -6 -6 -6 -6 -5 -5 -5 -5 -5 -4 -4 -4 -4 -4 -3 -3 -3 -2 -2 -2 -1 ------- Run | Yrd Mat Min Mat Min Exi Min Mat Fac Sto Fac Low Low Zio Pro Fac Upp Upp Zhi Pro Fac Upp Upp War Pro Res Qua Res Tes Sec Acc Robot Analysis Total 4 | . . . . . . . . . . . . . . . . . . 4 . . . . . . . . . . . . Derelict Logs Recovered 14 | . . 2 . . . . . . . . 1 . 3 2 . 3 . . 2 . . 1 . . . . . . . . Drone Launches 6 | . . . . . . . . . . . . . . . . . . . . . . . . . . . . . . 6 Drone Recoveries . | . . . . . . . . . . . . . . . . . . . . . . . . . . . . . . . Exploration | -11 -10 -10 -9 -9 -9 -8 -8 -7 -7 -6 -6 -6 -6 -5 -5 -5 -5 -5 -4 -4 -4 -4 -4 -3 -3 -3 -2 -2 -2 -1 ------------- Run | Yrd Mat Min Mat Min Exi Min Mat Fac Sto Fac Low Low Zio Pro Fac Upp Upp Zhi Pro Fac Upp Upp War Pro Res Qua Res Tes Sec Acc Turns Passed 15758 | . 1225 628 2332 1444 407 247 2412 390 181 182 159 141 307 169 223 206 92 92 118 387 55 157 782 380 1121 464 563 349 127 418 Spaces Moved 16525 | 1 531 221 751 545 163 82 800 653 261 307 453 195 1011 488 559 394 261 206 316 776 142 310 941 161 1381 923 1335 892 328 1138 Core 1007 | . . . . . . . . . 1 . . . . . . . . . 21 17 33 310 536 . 72 . . . . 17 Treads 3544 | . 470 221 751 545 163 82 800 . . . . . . . . . . . . . . . 94 161 257 . . . . . Legs 62 | 1 61 . . . . . . . . . . . . . . . . . . . . . . . . . . . . . Wheels . | . . . . . . . . . . . . . . . . . . . . . . . . . . . . . . . Hover 311 | . . . . . . . . . . . . . . . . . . . . . . . 311 . . . . . . . Flight 11346 | . . . . . . . . 653 260 307 453 195 1011 488 559 394 261 206 295 759 109 . . . 1052 923 1335 892 318 876 Fastest Speed 23 | 120 120 232 232 250 250 250 163 32 29 29 29 29 29 29 29 30 35 35 35 30 35 50 50 170 28 28 23 23 28 27 Average Speed 77 | 120 210 232 246 250 250 250 247 33 30 29 29 29 29 29 29 33 35 35 35 32 38 50 68 170 63 31 29 26 28 33 Slowest Speed 250 | 120 240 240 250 250 250 250 250 35 200 29 29 29 29 29 32 35 35 35 50 195 50 50 250 170 250 108 108 108 28 97 Overloaded Moves . | . . . . . . . . . . . . . . . . . . . . . . . . . . . . . . . Propulsion Burnouts . | . . . . . . . . . . . . . . . . . . . . . . . . . . . . . . . Robots Hopped 81 | . . . . . . . . 1 4 1 . 1 . . 1 4 . . 6 4 1 . . . 14 5 13 6 5 15 Cave-ins Triggered 2 | . . . . . . . . . . . . . . . 1 . . . . . . . . . . . . 1 . . Teleports 1 | . . . . . . . . . . . . . . . . . . . . . . . . . 1 . . . . . Microwarps 20 | . . . . . . . . . . . . . . . . . . . . . . . . . . . . . 1 19 Exploration Rate (%) 49 | 2 96 47 85 70 52 15 69 18 46 13 53 41 80 75 19 58 53 62 51 26 35 55 89 33 42 86 29 78 23 30 Regions Visited 30 Branch Regions 20 Pre-discovered Areas 8 | . . 1 . 1 1 . . . . . . . 1 . . . . 3 . . . 1 . . . . . . . . Known Exits Taken 17 | . . . 1 . . . . 1 1 1 1 1 1 1 1 . . . 1 1 . . . 1 1 1 1 1 1 . Unknown Exits Taken 13 | 1 1 1 . 1 1 1 1 . . . . . . . . 1 1 1 . . 1 1 1 . . . . . . . Scrap Searched 16 | . . 1 . 1 . 1 . . . . 1 . 2 2 . 2 1 . 4 . . . . 1 . . . . . . Spaces Dug 79 | . . . . 7 . . 6 7 1 4 . . . 3 16 . . . . 11 . . . . 12 3 3 3 . 3 Terrain Destroyed 276 | . . . . 43 . . 23 7 1 4 . 19 . 3 16 . . . . 11 . . . 53 20 3 3 3 . 67 Melee 72 | . . . . . . . 6 7 1 4 . . . 3 16 . . . . 11 . . . . 12 3 3 3 . 3 Projectile 31 | . . . . . . . 3 . . . . . . . . . . . . . . . . 25 3 . . . . . AOE 173 | . . . . 43 . . 14 . . . . 19 . . . . . . . . . . . 28 5 . . . . 64 Terrain Rammed . | . . . . . . . . . . . . . . . . . . . . . . . . . . . . . . . Walls Destroyed . | . . . . . . . . . . . . . . . . . . . . . . . . . . . . . . . Machines Disabled . | . . . . . . . . . . . . . . . . . . . . . . . . . . . . . . . Actions | -11 -10 -10 -9 -9 -9 -8 -8 -7 -7 -6 -6 -6 -6 -5 -5 -5 -5 -5 -4 -4 -4 -4 -4 -3 -3 -3 -2 -2 -2 -1 --------- Run | Yrd Mat Min Mat Min Exi Min Mat Fac Sto Fac Low Low Zio Pro Fac Upp Upp Zhi Pro Fac Upp Upp War Pro Res Qua Res Tes Sec Acc Total 18465 | . 592 274 1061 595 164 100 1040 805 336 392 479 275 1024 510 593 428 260 220 312 865 140 311 1072 207 1551 1073 1467 981 349 989 Wait 992 | . 13 12 146 17 . . 79 83 56 27 27 77 . 19 7 5 . . . 49 . . 34 8 47 102 95 43 12 34 Move 16111 | . 530 220 750 544 162 81 799 650 253 304 452 192 1010 487 556 386 260 205 304 767 139 309 940 160 1354 913 1313 880 308 883 Hop 69 | . . . . . . . . 1 3 1 . 1 . . 1 3 . . 5 4 1 . . . 12 4 9 5 5 14 Pick Up 82 | . 12 4 16 4 . . 18 5 . . . . 5 . 2 . . 1 . . . . 3 . 5 3 1 2 . 1 Fast Attach 147 | . 1 1 10 2 . . 6 3 6 . . . 1 . 2 . . 5 3 16 . . 24 1 22 5 15 7 1 16 Attach 82 | . 3 . 6 3 . 3 10 10 . 2 . 1 1 1 5 3 . 1 . 1 . . 1 2 11 7 4 4 1 2 Detach 51 | . 2 1 4 1 . . . 6 . . . 1 2 . 2 5 . 1 . 1 . . 2 . 6 6 3 4 1 3 Swap 47 | . 1 3 8 4 1 3 13 1 . . . . 1 . 1 . . . . . . . 2 . 3 1 4 1 . . Drop 149 | . 5 . 26 3 1 . 15 12 5 . . . 3 . 1 . . 4 . 3 . . 19 . 11 10 10 9 2 10 Fire 340 | . 25 33 94 15 . 13 94 . . . . 3 . . . . . . . . . . 4 30 28 . . . . 1 Melee 155 | . . . . . . . 6 16 13 4 . . 1 3 16 23 . 3 . 22 . . . . 16 4 13 8 1 6 Ram . | . . . . . . . . . . . . . . . . . . . . . . . . . . . . . . . Kick . | . . . . . . . . . . . . . . . . . . . . . . . . . . . . . . . Crush 3 | . . . 1 2 . . . . . . . . . . . . . . . . . . . . . . . . . . Escape Stasis 162 | . . . . . . . . 18 . 54 . . . . . . . . . . . . . . 36 . . 18 18 18 Rewire 52 | . . . . . . . . . . . . . . . . 3 . . . . . . 43 6 . . . . . . Trap 2 | . . . . . . . . . . . . . . . . . . . . . . 2 . . . . . . . . Miscellaneous 21 | . . . . . . . . . . . . . . . . . . . . 2 . . . . . 18 . . . 1 Route ------- -11/Scrapyard -10/Materials (discovered 4 exits: [*Mat x3] / *Min) -10/Mines -9/Materials (discovered 3 exits: *Mat x2 / *Min) -9/Mines (discovered 2 exits: *Mat / *Exi) -9/Exiles -8/Mines -8/Materials (discovered 3 exits: *Fac x3) -7/Factory (discovered 3 exits: *Sto / Low x2) -7/Storage (discovered 2 exits: *Fac / Rec) -6/Factory (discovered 2 exits: *Low x2) -6/Lower Caves -6/Lower Caves -6/Zion (discovered 2 exits: Dee / *Pro) -5/Proximity Caves -5/Factory (discovered 4 exits: Fac x2 / *Upp x2) -5/Upper Caves -5/Upper Caves (discovered 2 exits: *Fac / *Zhi) -5/Zhirov -4/Proximity Caves -4/Factory (discovered 3 exits: Res x2 / *Upp) -4/Upper Caves -4/Upper Caves -4/Warlord -3/Proximity Caves -3/Research (discovered 4 exits: *Res x2 / *Qua x2) -3/Quarantine -2/Research (discovered 2 exits: *Tes x2) -2/Testing (discovered 2 exits: *Acc / *Sec) -2/Section 7 -1/Access History --------- Turn | Location | Event 1 | -11/Scrapyard | Discovered new exit (range 0) 1 | -11/Scrapyard | Entered Materials 151 | -10/Materials | Discovered new exit (range 13) 318 | -10/Materials | Build established: Mutant 371 | -10/Materials | Discovered new exit (range 12) 462 | -10/Materials | Discovered new exit (range 11) 1007 | -10/Materials | Discovered new exit (range 16) 1226 | -10/Materials | Entered Mines 1236 | -10/Mines | Learned location of Zion (-6) 1259 | -10/Mines | Met a Derelict shopkeep closing up shop 1273 | -10/Mines | Learned location of 1 exit from Materials 1834 | -10/Mines | Discovered new exit (range 8) 1846 | -10/Mines | Received a Rocket Launcher from a helpful Derelict 1854 | -10/Mines | Entered Materials 1854 | -9/Materials | Evolved 2 slots: Utility x2 1855 | -9/Materials | Identified exit to Mines 2192 | -9/Materials | Build established: Scavenger-Mutant 2688 | -9/Materials | Build established: Mutant 3169 | -9/Materials | Discovered new exit (range 9) 3450 | -9/Materials | Lost 3 parts (1u2w) 3551 | -9/Materials | Discovered new exit (range 8) 4186 | -9/Materials | Entered Mines 4378 | -9/Mines | Found a damaged Exp. Sensor Array with a note attached 4409 | -9/Mines | Found Prototype Device 4409 | -9/Mines | Identified Exp. Sensor Array 4496 | -9/Mines | Learned location of Storage (-7) 4677 | -9/Mines | Assembled infested the area 4689 | -9/Mines | Core integrity fell below 50% 4758 | -9/Mines | Joined a pair of Derelicts in attacking an 0b10 outpost 4768 | -9/Mines | Destroyed 13 combat bots 4770 | -9/Mines | Lost 3 parts (1n2u) 5580 | -9/Mines | Discovered new exit (range 8) 5590 | -9/Mines | Discovered new exit (range 6) 5592 | -9/Mines | Deemed a non-threat by the Exiles lab entrance 5630 | -9/Mines | Entered Exiles 5693 | -9/Exiles | Met 8R-AWN 5735 | -9/Exiles | Met EX-HEX 5805 | -9/Exiles | Met EX-BIN 5853 | -9/Exiles | Met EX-DEC 6007 | -9/Exiles | Discovered new exit (range 14) 6037 | -9/Exiles | Entered Mines 6102 | -8/Mines | Lost 3 parts (1n1u1w) 6247 | -8/Mines | Discovered new exit (range 13) 6284 | -8/Mines | Entered Materials 6284 | -8/Materials | Evolved 2 slots: Propulsion x1, Utility x1 6927 | -8/Materials | Discovered new exit (range 9) 7492 | -8/Materials | Discovered new exit (range 16) 8007 | -8/Materials | Discovered new exit (range 3) 8377 | -8/Materials | Lost 3 parts (1p1n1u) 8696 | -8/Materials | Entered Factory 8696 | -7/Factory | Evolved 2 slots: Utility x2 8915 | -7/Factory | Identified exit to Storage 8915 | -7/Factory | Identified exit to Lower Caves 9053 | -7/Factory | Build established: Hacker-Scout 9086 | -7/Factory | Entered Storage 9100 | -7/Storage | Found Prototype Launcher 9100 | -7/Storage | Identified Rocket Array 9177 | -7/Storage | Discovered new exit (range 15) 9241 | -7/Storage | Identified exit to Recycling 9245 | -7/Storage | Assisted by bots powering up and referring to "LRC-V3" 9246 | -7/Storage | Identified exit to Factory 9267 | -7/Storage | Entered Factory 9267 | -6/Factory | Accompanied by 10 allies 9267 | -6/Factory | Evolved 2 slots: Utility x2 9384 | -6/Factory | Identified exit to Lower Caves 9449 | -6/Factory | Entered Lower Caves 9449 | -6/Lower Caves | Accompanied by 5 allies 9483 | -6/Lower Caves | Learned 4 Factory zone layouts 9513 | -6/Lower Caves | Spotted B-75 Beast 9537 | -6/Lower Caves | Encountered a Warlord checkpoint 9604 | -6/Lower Caves | Discovered new exit (range 12) 9607 | -6/Lower Caves | Identified exit to Lower Caves 9608 | -6/Lower Caves | Entered another Lower Caves area 9746 | -6/Lower Caves | Discovered new exit (range 10) 9749 | -6/Lower Caves | Identified exit to Zion 9749 | -6/Lower Caves | Entered Zion 9778 | -6/Zion | Discovered new exit (range 15) 9830 | -6/Zion | Learned Factory terminal intel 9833 | -6/Zion | Learned location of 1 exit from Factory 9845 | -6/Zion | Identified exit to Deep Caves 10056 | -6/Zion | Identified exit to Proximity Caves 10056 | -6/Zion | Entered Proximity Caves 10155 | -5/Proximity Caves | Learned Factory stockpile data 10179 | -5/Proximity Caves | Discovered new exit (range 11) 10179 | -5/Proximity Caves | Learned location of 1 exit from Factory 10225 | -5/Proximity Caves | Identified exit to Factory 10225 | -5/Proximity Caves | Entered Factory 10225 | -5/Factory | Evolved 2 slots: Propulsion x1, Utility x1 10226 | -5/Factory | Identified exit to Factory 10229 | -5/Factory | Loaded intel: 26 terminal locations 10283 | -5/Factory | Hacking Suite fried by hacking feedback 10360 | -5/Factory | Identified exit to Upper Caves 10426 | -5/Factory | Crushed by falling debris 10426 | -5/Factory | System corruption reached 10% 10448 | -5/Factory | Entered Upper Caves 10449 | -5/Upper Caves | Spotted B-75 Beast 10475 | -5/Upper Caves | Lost 6 parts (1n5u) 10480 | -5/Upper Caves | Attracted the attention of an 0b10 outpost 10566 | -5/Upper Caves | Learned location of 1 exit from Factory 10571 | -5/Upper Caves | Learned Factory stockpile data 10583 | -5/Upper Caves | Lost 4 parts (2n2u) 10606 | -5/Upper Caves | Learned location of 2 exits from Factory 10607 | -5/Upper Caves | Attracted the attention of an 0b10 checkpoint 10650 | -5/Upper Caves | Discovered new exit (range 9) 10654 | -5/Upper Caves | Entered another Upper Caves area 10657 | -5/Upper Caves | Discovered exit to Factory (range 4) 10741 | -5/Upper Caves | Discovered new exit (range 11) 10746 | -5/Upper Caves | Entered Zhirov 10746 | -5/Zhirov | Discovered new exit (range 3) 10753 | -5/Zhirov | Met Zhirov 10759 | -5/Zhirov | Learned location of Quarantine (-3) 10759 | -5/Zhirov | Learned location of Testing (-2) 10759 | -5/Zhirov | Learned location of Command (-1) 10766 | -5/Zhirov | Zhirov requested help retrieving the SGEMP Prototype 10776 | -5/Zhirov | Found Alien Artifact 10776 | -5/Zhirov | Identified Integrated Dissipator 10776 | -5/Zhirov | Installed Integrated Dissipator, increased core heat dissipation (+20) 10783 | -5/Zhirov | Found Alien Artifact 10838 | -5/Zhirov | Entered Proximity Caves 10840 | -4/Proximity Caves | Learned Research emergency access door positions 10845 | -4/Proximity Caves | Build established: Mutant 10879 | -4/Proximity Caves | Learned Research security intel 10903 | -4/Proximity Caves | Spotted B-86 Titan 10919 | -4/Proximity Caves | Attracted the attention of an 0b10 checkpoint 10923 | -4/Proximity Caves | Core integrity fell below 50% 10950 | -4/Proximity Caves | Discovered exit to Factory (range 15) 10956 | -4/Proximity Caves | Entered Factory 10956 | -4/Factory | Evolved 2 slots: Utility x2 10957 | -4/Factory | Identified exit to Research 10957 | -4/Factory | Identified exit to Upper Caves 10977 | -4/Factory | Lost 4 parts (1n3u) 11100 | -4/Factory | Fabricated E-15 Imp (x2) 11343 | -4/Factory | Entered Upper Caves 11357 | -4/Upper Caves | Lost 3 parts (1n2u) 11377 | -4/Upper Caves | Spotted B-86 Titan 11394 | -4/Upper Caves | Discovered new exit (range 7) 11398 | -4/Upper Caves | Entered another Upper Caves area 11412 | -4/Upper Caves | Core integrity fell below 50% 11473 | -4/Upper Caves | Lost 4 parts (1n2u1w) 11549 | -4/Upper Caves | Attracted the attention of an 0b10 checkpoint 11550 | -4/Upper Caves | Core integrity fell below 20% 11551 | -4/Upper Caves | Learned location of Armory (-4) 11553 | -4/Upper Caves | Discovered new exit (range 5) 11555 | -4/Upper Caves | Entered Warlord 11581 | -4/Warlord | Discovered new exit (range 14) 11599 | -4/Warlord | System corruption cleaned by Quarantine Array 11722 | -4/Warlord | Met Warlord 11747 | -4/Warlord | Warlord's base attacked by MAIN.C 11832 | -4/Warlord | Spotted B-90 Cyclops 11833 | -4/Warlord | Destroyed B-90 Cyclops 11950 | -4/Warlord | Build established: Hacker-Mutant 11960 | -4/Warlord | Found Prototype Energy Gun 11960 | -4/Warlord | Identified Vortex Shotgun 11964 | -4/Warlord | Found Prototype Energy Gun 11964 | -4/Warlord | Identified Vortex Rifle 12033 | -4/Warlord | Found Vortex Rifle 12040 | -4/Warlord | Found Vortex Shotgun 12097 | -4/Warlord | Warlord forces counterattacked 12119 | -4/Warlord | Spotted Striker 12186 | -4/Warlord | Spotted B-90 Cyclops 12186 | -4/Warlord | Spotted B-86 Titan 12187 | -4/Warlord | Lost 3 allies 12285 | -4/Warlord | Spotted Executioner 12285 | -4/Warlord | Spotted Executioner 12289 | -4/Warlord | Allies destroyed Executioner 12293 | -4/Warlord | Allies destroyed Executioner 12309 | -4/Warlord | Found Prototype Processor 12309 | -4/Warlord | Identified Exp. Core Analyzer 12313 | -4/Warlord | Found Exp. Core Analyzer 12318 | -4/Warlord | Lost 8 allies 12337 | -4/Warlord | Entered Proximity Caves 12337 | -3/Proximity Caves | Accompanied by 4 allies 12446 | -3/Proximity Caves | Build established: Scavenger-Mutant 12508 | -3/Proximity Caves | Attracted the attention of an 0b10 outpost 12678 | -3/Proximity Caves | Discovered exit to Research (range 15) 12688 | -3/Proximity Caves | P-80 Master assimilated allied Veteran 8a 12717 | -3/Proximity Caves | Entered Research 12717 | -3/Research | Accompanied by 4 allies 12717 | -3/Research | Evolved 2 slots: Utility x2 13224 | -3/Research | Spotted B-86 Titan 13279 | -3/Research | Lost 4 allies 13294 | -3/Research | Found Prototype Device 13294 | -3/Research | Identified Exp. Shield Generator 13345 | -3/Research | Spotted B-86 Titan 13475 | -3/Research | Identified Transdimensional Reconstructor 13475 | -3/Research | Warped through subspace 13485 | -3/Research | Discovered new exit (range 10) 13489 | -3/Research | Identified exit to Research 13498 | -3/Research | Core integrity fell below 50% 13504 | -3/Research | Lost 13 parts (1p2n8u2w) 13515 | -3/Research | Build established: Hacker-Mutant 13703 | -3/Research | Discovered exit to Research (range 15) 13780 | -3/Research | Found Gamma Bomb Array 13800 | -3/Research | Identified exit to Quarantine 13838 | -3/Research | Entered Quarantine 13839 | -3/Quarantine | Spotted Alpha 7 13855 | -3/Quarantine | Found Alien Launcher 13867 | -3/Quarantine | Identified Sigix Terminator 13895 | -3/Quarantine | Found Alien Artifact 13995 | -3/Quarantine | Build established: Hacker-Scout 14180 | -3/Quarantine | Found Alien Slashing Weapon 14180 | -3/Quarantine | Identified Sigix Broadsword 14197 | -3/Quarantine | Found Alien Energy Cannon 14197 | -3/Quarantine | Identified Core Cannon 14302 | -3/Quarantine | Entered Research 14302 | -2/Research | Warlord forces began assault on 0b10 14302 | -2/Research | Evolved 2 slots: Propulsion x2 14408 | -2/Research | Identified exit to Testing 14412 | -2/Research | Research machine network offline 14636 | -2/Research | Lost 4 allies 14648 | -2/Research | Met up with Warlord 14662 | -2/Research | Found Prototype Device 14662 | -2/Research | Identified Exp. ECM Suite 14702 | -2/Research | Spotted Executioner 14702 | -2/Research | Spotted Striker 14741 | -2/Research | Spotted Executioner 14747 | -2/Research | Spotted Executioner 14761 | -2/Research | Found Prototype Processor 14761 | -2/Research | Identified Exp. Targeting Computer 14865 | -2/Research | Entered Testing 14888 | -2/Testing | Found Prototype Energy Gun 14913 | -2/Testing | Found Lgt. Regenerative Plating 14915 | -2/Testing | Found Lgt. Regenerative Plating 14952 | -2/Testing | Found Prototype Device 14972 | -2/Testing | Build established: Wizard-Sprinter 15030 | -2/Testing | Crushed by falling debris 15030 | -2/Testing | System corruption reached 10% 15030 | -2/Testing | Identified Exp. Force Field 15056 | -2/Testing | Discovered new exit (range 5) 15061 | -2/Testing | Lost 3 parts (2n1u) 15065 | -2/Testing | Local machine network offline 15087 | -2/Testing | Identified exit to Access 15194 | -2/Testing | Spotted Fortress 15213 | -2/Testing | Discovered new exit (range 6) 15214 | -2/Testing | Identified exit to Section 7 15214 | -2/Testing | Entered Section 7 15221 | -2/Section 7 | Found Alien Artifact 15221 | -2/Section 7 | Identified Microwarp Drive 15225 | -2/Section 7 | Spotted S7 Guard 15319 | -2/Section 7 | Spotted Alpha 7 15329 | -2/Section 7 | Spotted S7 Guard 15334 | -2/Section 7 | Spotted S7 Guard 15341 | -2/Section 7 | Entered Access 15341 | -1/Access | Evolved 2 slots: Power x1, Propulsion x1 15441 | -1/Access | Garrison activated, responded to threat 15532 | -1/Access | Found Prototype Device 15532 | -1/Access | Identified Adv. Kinecellerator 15548 | -1/Access | Local machine network offline 15652 | -1/Access | Lost 6 parts (1p2n2u1w) 15690 | -1/Access | Core integrity fell below 50% 15741 | -1/Access | Spotted B-99 Colossus 15756 | -1/Access | Core integrity fell below 20% 15759 | -1/Access | Fired Sigix Terminator 15759 | -1/Access | Destroyed B-99 Colossus 15759 | -1/Access | Destroyed self with Sigix Terminator Last Messages --------------- 15751_ Knocked back. 15751_ Lance destroyed. 15752_ P-80 Master fails to hack B-99 Colossus. 15753_ Adv. System Shield repels hacking attempt against B-99 Colossus. 15754_ Network quickbooting B-99 Colossus, ETC: 7. 15758_ Knocked back. 15759_ System corrupted: Matter fused (-7). 15759_ Sigix Terminator expended. 15759_ Destroyed Xenon Bombardment Thruster. 15759_ S-43 Plague destroyed. 15759_ Destroyed Hvy. Machine Gun. 15759_ S-43 Plague destroyed. 15759_ Destroyed Xenon Bombardment Thruster. 15759_ Destroyed Hvy. Machine Gun. 15759_ S-43 Plague destroyed. 15759_ Destroyed Biometal Leg. 15759_ Destroyed Com. HERF Cannon. 15759_ X-87 Electro destroyed. 15759_ H-81 Overseer destroyed. 15759_ ALERT: Garrison Access compromised, dispatching assault squad. Map ----- +----------------------------------------------------+ | ?????????????????????#????# ! + | | ?????????????????????# ??# = # ########## | | ?????????????????????# # # #????????? | | ?????????????????????# " ## ##????????? | | ?????????????????????# ########## #?????????? | | ?????????????????????# # ???######## ########### | | ?????????????????????#?# # | | ????????###+##???####???????######## # | | ????????? #?? #??????????????# # | | ?????????# #?? #?????????###### # | | ?????????# +? #?????????# # | | ??######?# #? #?????????+ + | | ??# ## # * #?????????# # | | ??# # #?????????# ###### | | ??# + ! #?????????# #????# | | ??# ########?????????+ ?????# | | ??# ###/########??????????# ??????# | | ??### #?# #??????+#??# ??????# | | ????# #?# / !#????## ### ???????#+######### | | ????# #?# ] #????# ????????# #???????? | | ????# #?# ! #????# ?????????# #???????? | | ##### ### ! #????# ??????????# #???????? | | ##"#"###########??# #??????????# #???????? | | #??# #?????????## ########? | | #### #?????????# ## # | | ; ;@ %#????????## ## | | ! !* ;;;; ###??????+ ## | | " =%=* ; #??????## ## | | ! #??????## ## # | | #??????# ]### #?? | | +??????# ### ### | | s#??????# | | #??????# ### ### | | "############; ; ;;;; #??????# #?# #?? | | # ! #; ;; ; ;;;;;+####??????###+#####+### | | # ]**## ;;;;; ; #??????# | | # ] *## ; ; #??????# | | # ]!!## #;;;;;; " #??????# | | # ! * ## ?? ; """ #??????# | | # = #? ? #??; G #??????# | | #####+######## #??# !%""" #??????############# | | #???# #??# !]* " #????????# | | #???# #??# = #????????# | | ##### #??# [ #????????# | | #??####+#####????????# | | ^ #############?????# #????????????# | | #?????????????????# #????????????# """"" | | ################### #????????????# """"" | | #??########### """"" | | ^ #### " """"" | +----------------------------------------------------+ Best States ------------- Heat Dissipation 72 Energy Generation 41 Energy Capacity 875 Matter Stores 300 Matter Capacity 300 Sight Range 16 Robot Scan Range 20 Terrain Scan Range 16 Terrain Scan Density 410 Jamming Range 16 Cloak Strength 3 Power Amplification 60 Additional Mass Support 9 Corruption Containment 16 Armor Coverage 450 Resistance: TH 25 Resistance: EM 20 Core Shielding 30 Weapon Shielding 90 Evasion (%) 76 Targeting Accuracy 12 Melee Accuracy 6 Target Analysis 5 Core Analysis 12 Armor Integrity Analysis 40 Recoil Reduction 4 Offensive Hacking 52 Defensive Hacking 56 Authchip Count 1 Item Schematics ----------------- Adv. Reaction Control System | -6/Factory | Hacked Thermal Shield | -6/Zion | Archive Imp. Thermal Shield | -6/Zion | Archive Phase Cannon | -6/Zion | Archive Imp. Weapon Cycler | -6/Zion | Archive Phase Shifter | -6/Zion | Archive Recoil Nullifier | -6/Zion | Archive Fusion Compressor | -6/Zion | Archive Imp. Antigrav System | -6/Zion | Archive Spk. Heavy Treads | -6/Zion | Archive Wave Gun | -6/Zion | Archive 0b10 Decoder Chip [Skirmisher] | -6/Zion | Archive Lgt. Fission Core | -6/Zion | Archive Imp. Recalibrator | -6/Zion | Archive Imp. VTOL Module | -5/Factory | Hacked Assault Drone Bay | -5/Zhirov | Free Exp. Heat Sink | -5/Zhirov | Free Exp. Optical Array | -5/Zhirov | Free Imp. Arc Thrower | -5/Zhirov | Free Lgt. Regenerative Plating | -2/Testing | Hacked Exp. Sensor Array | -2/Testing | Archive Cld. Q-thruster | -2/Testing | Archive Exp. Q-thruster | -2/Testing | Archive Ionic Axe | -2/Testing | Archive Prc. Matter Filter | -2/Testing | Archive Robot Schematics ------------------ G-50 Soldier | -6/Zion | Archive R-06 Scavenger | -6/Zion | Archive A-02 Transporter | -6/Zion | Archive D-83 Annihilator | -6/Zion | Archive S-43 Plague | -2/Testing | Archive Fabricated ------------ E-15 Imp | x2 | -4/Factory | Preloaded Alien Tech Used ----------------- Integrated Dissipator Transdimensional Reconstructor Sigix Terminator Sigix Broadsword Core Cannon Microwarp Drive Achievements -------------- None Challenges ------------ None Game ------ Seed SiegeBackupInjector Manual? 0 Play Time 03:39:36 Cumulative 224.5 hours Start 2024.04.17 @ 20:56:05 End 2024.04.19 @ 20:35:26 Sessions 9 Manual Loads 0 Difficulty Rogue Special Mode None Game No. 221 Rogue 221 Adventurer 0 Explorer 0 Win Type - Total 6 Types 4/0/0/1/1/0/0/0/0 Lore% 70 Gallery% 78 Achievement% 65 Wizard Run 0 Options --------- Layout 0 ASCII 0 Keyboard 0 Movement Numpad Keybinds 0 Fullscreen 2 Font 18/SmallcapsGlow Map View 76x50 Zoom Use 0% Tactical HUD 1 Map Filters NONE Filters NONE Steam 1 RUN: f1e138f3-ec9b-4f55-9ef8-908ec09bf4de